[Event "Early-Titled-Tuesday-Blitz-January-30-2024"]
[Site "Chess.com"]
[Date "2024.01.30"]
[Round "7"]
[White "lilleper1"]
[Black "Kostya0705"]
[Result "1-0"]
[WhiteElo "2924"]
[BlackElo "2603"]
[TimeControl "180+1"]
[EndTime "9:19:23 PST"]
[Termination "lilleper1 won on time"]

1. d4 {[%clk 0:03:00.9]} 1... Nf6 {[%clk 0:02:59.7]} 2. c4 {[%clk 0:03:00.8]}
2... e6 {[%clk 0:03:00.2]} 3. Nf3 {[%clk 0:03:01.2]} 3... d5 {[%clk 0:03:00]} 4.
g3 {[%clk 0:03:01.3]} 4... Bb4+ {[%clk 0:02:59.3]} 5. Bd2 {[%clk 0:03:01.5]}
5... a5 {[%clk 0:02:59.7]} 6. a3 {[%clk 0:02:59.9]} 6... Be7 {[%clk 0:02:59]} 7.
Bg2 {[%clk 0:02:59.1]} 7... O-O {[%clk 0:02:59.4]} 8. O-O {[%clk 0:02:57.1]}
8... c6 {[%clk 0:02:59.7]} 9. Qc2 {[%clk 0:02:51.5]} 9... Nbd7 {[%clk 0:02:58]}
10. Bf4 {[%clk 0:02:51.4]} 10... b6 {[%clk 0:02:54]} 11. Nbd2 {[%clk 0:02:49]}
11... Nh5 {[%clk 0:02:53]} 12. Be3 {[%clk 0:02:47.5]} 12... Nhf6 {[%clk
0:02:52.5]} 13. Rfc1 {[%clk 0:02:29.8]} 13... Ba6 {[%clk 0:02:51.5]} 14. Bf4
{[%clk 0:02:25.7]} 14... Rc8 {[%clk 0:02:48.5]} 15. b4 {[%clk 0:02:22.9]} 15...
dxc4 {[%clk 0:02:40.5]} 16. Nxc4 {[%clk 0:02:20.7]} 16... Nd5 {[%clk 0:02:05]}
17. Bd2 {[%clk 0:02:19.2]} 17... axb4 {[%clk 0:01:57.5]} 18. axb4 {[%clk
0:02:18.6]} 18... Bb7 {[%clk 0:01:52.2]} 19. Ra7 {[%clk 0:02:14.2]} 19... Rb8
{[%clk 0:01:24.2]} 20. Qb3 {[%clk 0:02:10.7]} 20... Ba8 {[%clk 0:01:12.5]} 21.
e4 {[%clk 0:02:06.4]} 21... N5f6 {[%clk 0:01:12.1]} 22. Bf4 {[%clk 0:01:31.1]}
22... Rc8 {[%clk 0:01:10]} 23. Nfe5 {[%clk 0:01:26.1]} 23... Nxe5 {[%clk
0:01:06.1]} 24. dxe5 {[%clk 0:01:26]} 24... Nd7 {[%clk 0:01:03.6]} 25. Rca1
{[%clk 0:00:49.4]} 25... Rb8 {[%clk 0:00:48.6]} 26. Be3 {[%clk 0:00:45.5]} 26...
Bb7 {[%clk 0:00:36]} 27. Rd1 {[%clk 0:00:43.1]} 27... Qc7 {[%clk 0:00:35.6]} 28.
f4 {[%clk 0:00:38.3]} 28... Ra8 {[%clk 0:00:32.6]} 29. Rxa8 {[%clk 0:00:37.4]}
29... Rxa8 {[%clk 0:00:33.5]} 30. Nd6 {[%clk 0:00:37.9]} 30... Ba6 {[%clk
0:00:17]} 31. Bh3 {[%clk 0:00:36.9]} 31... Nf8 {[%clk 0:00:15.5]} 32. f5 {[%clk
0:00:37.6]} 32... Bc8 {[%clk 0:00:14.4]} 33. Bf4 {[%clk 0:00:35]} 33... c5
{[%clk 0:00:12.1]} 34. f6 {[%clk 0:00:34.1]} 34... Bxd6 {[%clk 0:00:10.6]} 35.
exd6 {[%clk 0:00:33.4]} 35... Qc6 {[%clk 0:00:06.8]} 36. fxg7 {[%clk 0:00:33.8]}
36... Ng6 {[%clk 0:00:06.5]} 37. Qe3 {[%clk 0:00:30.5]} 37... Bb7 {[%clk
0:00:05.8]} 38. bxc5 {[%clk 0:00:27.5]} 38... Nxf4 {[%clk 0:00:04.4]} 39. Qxf4
{[%clk 0:00:24.2]} 39... Qxe4 {[%clk 0:00:02.6]} 40. Qxe4 {[%clk 0:00:22.4]}
40... Bxe4 {[%clk 0:00:03.5]} 41. cxb6 {[%clk 0:00:22.6]} 41... Kxg7 {[%clk
0:00:02.5]} 42. d7 {[%clk 0:00:21.3]} 42... Rd8 {[%clk 0:00:02.9]} 43. Bg2
{[%clk 0:00:21.7]} 43... Bxg2 {[%clk 0:00:02.9]} 44. Kxg2 {[%clk 0:00:22.6]}
44... Kf6 {[%clk 0:00:03.4]} 45. b7 {[%clk 0:00:22.5]} 45... Ke7 {[%clk
0:00:04]} 46. g4 {[%clk 0:00:21.6]} 46... Rb8 {[%clk 0:00:03.5]} 47. d8=Q+
{[%clk 0:00:21.2]} 1-0

[Event "Early-Titled-Tuesday-Blitz-January-30-2024"]
[Site "Chess.com"]
[Date "2024.01.30"]
[Round "7"]
[White "Sofia_Blokhin"]
[Black "pfalcon1949"]
[Result "0-1"]
[WhiteElo "2240"]
[BlackElo "1966"]
[TimeControl "180+1"]
[EndTime "9:19:23 PST"]
[Termination "pfalcon1949 won by checkmate"]

1. d4 {[%clk 0:03:00.9]} 1... Nf6 {[%clk 0:02:59.2]} 2. c4 {[%clk 0:02:57.5]}
2... c5 {[%clk 0:02:58.5]} 3. d5 {[%clk 0:02:14.9]} 3... b5 {[%clk 0:02:56.6]}
4. cxb5 {[%clk 0:02:12.5]} 4... a6 {[%clk 0:02:55.7]} 5. bxa6 {[%clk 0:02:11.5]}
5... g6 {[%clk 0:02:55.7]} 6. Nc3 {[%clk 0:02:11.3]} 6... Bg7 {[%clk 0:02:55.8]}
7. e4 {[%clk 0:02:11.6]} 7... O-O {[%clk 0:02:55.5]} 8. Be2 {[%clk 0:02:11.8]}
8... Qa5 {[%clk 0:02:55.4]} 9. Bd2 {[%clk 0:02:10.3]} 9... Bxa6 {[%clk
0:02:47.2]} 10. Nf3 {[%clk 0:02:09.2]} 10... Bxe2 {[%clk 0:02:46.1]} 11. Qxe2
{[%clk 0:02:08.9]} 11... Qa6 {[%clk 0:02:46.1]} 12. Qxa6 {[%clk 0:02:06.6]}
12... Nxa6 {[%clk 0:02:47]} 13. O-O {[%clk 0:02:06.4]} 13... d6 {[%clk
0:02:47.3]} 14. Rfe1 {[%clk 0:02:06.2]} 14... Nd7 {[%clk 0:02:40.2]} 15. a4
{[%clk 0:02:04.4]} 15... Nb4 {[%clk 0:02:37.1]} 16. Reb1 {[%clk 0:01:44.6]}
16... Rfb8 {[%clk 0:02:27.6]} 17. Ne1 {[%clk 0:01:32.9]} 17... f5 {[%clk
0:02:25.6]} 18. exf5 {[%clk 0:01:29.9]} 18... gxf5 {[%clk 0:02:26.5]} 19. Nb5
{[%clk 0:01:25.5]} 19... Nxd5 {[%clk 0:02:17]} 20. Ra3 {[%clk 0:01:22.2]} 20...
N7b6 {[%clk 0:01:58.9]} 21. Rg3 {[%clk 0:01:11.3]} 21... Kf7 {[%clk 0:01:53.9]}
22. b3 {[%clk 0:01:08.1]} 22... c4 {[%clk 0:01:48.3]} 23. a5 {[%clk 0:01:03.3]}
23... c3 {[%clk 0:01:35.8]} 24. Nxc3 {[%clk 0:00:40.9]} 24... Rxa5 {[%clk
0:01:24.9]} 25. Nxd5 {[%clk 0:00:32.2]} 25... Rxd5 {[%clk 0:01:21.8]} 26. Be3
{[%clk 0:00:28.8]} 26... e5 {[%clk 0:01:18.2]} 27. Rh3 {[%clk 0:00:26.4]} 27...
Kg6 {[%clk 0:01:04.7]} 28. Rg3+ {[%clk 0:00:23.3]} 28... Kf7 {[%clk 0:01:04.5]}
29. Rh3 {[%clk 0:00:23.6]} 29... Kg8 {[%clk 0:01:04.7]} 30. Nc2 {[%clk
0:00:18.6]} 30... f4 {[%clk 0:01:03]} 31. Bxb6 {[%clk 0:00:18.1]} 31... Rxb6
{[%clk 0:01:03.9]} 32. g3 {[%clk 0:00:17.5]} 32... Rd2 {[%clk 0:01:02.8]} 33.
Na3 {[%clk 0:00:15.8]} 33... f3 {[%clk 0:00:58.7]} 34. Nc4 {[%clk 0:00:13.3]}
34... Rxb3 {[%clk 0:00:43.9]} 35. Nxd2 {[%clk 0:00:13.1]} 35... Rd3 {[%clk
0:00:41]} 36. Rd1 {[%clk 0:00:12.3]} 36... e4 {[%clk 0:00:40.4]} 37. Rh4 {[%clk
0:00:12.1]} 37... d5 {[%clk 0:00:40.6]} 38. Rh5 {[%clk 0:00:11.9]} 38... Bc3
{[%clk 0:00:39.7]} 39. Rg5+ {[%clk 0:00:10.4]} 39... Kf7 {[%clk 0:00:38.5]} 40.
Rf5+ {[%clk 0:00:10.3]} 40... Ke6 {[%clk 0:00:38.6]} 41. Rh5 {[%clk 0:00:10.2]}
41... Rxd2 {[%clk 0:00:38.2]} 42. Rxd2 {[%clk 0:00:09.9]} 42... Bxd2 {[%clk
0:00:38.7]} 43. Rxh7 {[%clk 0:00:09.8]} 43... Ke5 {[%clk 0:00:38.8]} 44. Kf1
{[%clk 0:00:10]} 44... Kd4 {[%clk 0:00:37.8]} 45. Rd7 {[%clk 0:00:09.5]} 45...
Kc4 {[%clk 0:00:37.3]} 46. g4 {[%clk 0:00:09]} 46... d4 {[%clk 0:00:37.4]} 47.
h4 {[%clk 0:00:09.1]} 47... e3 {[%clk 0:00:34.6]} 48. fxe3 {[%clk 0:00:09]}
48... dxe3 {[%clk 0:00:34.9]} 49. g5 {[%clk 0:00:07.6]} 49... e2+ {[%clk
0:00:34.4]} 50. Kf2 {[%clk 0:00:06.6]} 50... e1=Q+ {[%clk 0:00:34.6]} 51. Kxf3
{[%clk 0:00:07.2]} 51... Qe3+ {[%clk 0:00:33.6]} 52. Kg4 {[%clk 0:00:07.4]}
52... Qf4+ {[%clk 0:00:32.1]} 53. Kh5 {[%clk 0:00:07.6]} 53... Be1 {[%clk
0:00:31.2]} 54. g6 {[%clk 0:00:06.1]} 54... Qxh4# {[%clk 0:00:29.9]} 0-1

[Event "Early-Titled-Tuesday-Blitz-January-30-2024"]
[Site "Chess.com"]
[Date "2024.01.30"]
[Round "7"]
[White "LastHeroJr"]
[Black "ukchessbomber"]
[Result "1-0"]
[WhiteElo "2489"]
[BlackElo "2619"]
[TimeControl "180+1"]
[EndTime "9:19:24 PST"]
[Termination "LastHeroJr won by checkmate"]

1. e4 {[%clk 0:03:00.8]} 1... b6 {[%clk 0:03:00.9]} 2. d4 {[%clk 0:02:59.4]}
2... Bb7 {[%clk 0:03:01.8]} 3. Bd3 {[%clk 0:02:59.2]} 3... e5 {[%clk 0:03:01.7]}
4. dxe5 {[%clk 0:02:55.1]} 4... Nc6 {[%clk 0:03:01]} 5. Nf3 {[%clk 0:02:27.5]}
5... Nge7 {[%clk 0:02:58.1]} 6. O-O {[%clk 0:02:17.8]} 6... Ng6 {[%clk
0:02:57.1]} 7. Kh1 {[%clk 0:01:58.8]} 7... Ncxe5 {[%clk 0:02:56.2]} 8. Nxe5
{[%clk 0:01:57.9]} 8... Nxe5 {[%clk 0:02:57.1]} 9. f4 {[%clk 0:01:51.2]} 9...
Nxd3 {[%clk 0:02:55.9]} 10. cxd3 {[%clk 0:01:45.1]} 10... Be7 {[%clk 0:02:55.9]}
11. Nc3 {[%clk 0:01:39]} 11... O-O {[%clk 0:02:56.8]} 12. Bd2 {[%clk 0:01:14.8]}
12... a6 {[%clk 0:02:56.5]} 13. Rc1 {[%clk 0:01:05.6]} 13... c5 {[%clk
0:02:56.1]} 14. Qh5 {[%clk 0:01:01.4]} 14... b5 {[%clk 0:02:54.5]} 15. Rf3
{[%clk 0:00:46.9]} 15... b4 {[%clk 0:02:36.5]} 16. Rh3 {[%clk 0:00:38.4]} 16...
h6 {[%clk 0:02:37]} 17. Nd5 {[%clk 0:00:32.8]} 17... Bxd5 {[%clk 0:02:37.3]} 18.
Qxd5 {[%clk 0:00:32.1]} 18... d6 {[%clk 0:02:36.3]} 19. Rf1 {[%clk 0:00:21.9]}
19... Bf6 {[%clk 0:02:35.4]} 20. b3 {[%clk 0:00:20.5]} 20... a5 {[%clk
0:02:32.8]} 21. f5 {[%clk 0:00:18.4]} 21... a4 {[%clk 0:02:32.9]} 22. Bxh6
{[%clk 0:00:18.2]} 22... gxh6 {[%clk 0:02:33.8]} 23. Rxh6 {[%clk 0:00:17.2]}
23... axb3 {[%clk 0:02:26.2]} 24. axb3 {[%clk 0:00:16.8]} 24... Ra1 {[%clk
0:02:16.4]} 25. Rxa1 {[%clk 0:00:15.1]} 25... Bxa1 {[%clk 0:02:17.3]} 26. f6
{[%clk 0:00:13.8]} 26... Bxf6 {[%clk 0:02:09.7]} 27. Qf5 {[%clk 0:00:13.9]}
27... Re8 {[%clk 0:02:03.6]} 28. Rxf6 {[%clk 0:00:13.6]} 28... Re5 {[%clk
0:01:54.9]} 29. Qg4+ {[%clk 0:00:13.5]} 29... Kf8 {[%clk 0:01:53.2]} 30. Rh6
{[%clk 0:00:13.6]} 30... Qa5 {[%clk 0:01:41.6]} 31. h3 {[%clk 0:00:10.1]} 31...
d5 {[%clk 0:00:26.8]} 32. Qc8+ {[%clk 0:00:07.1]} 32... Ke7 {[%clk 0:00:26.7]}
33. Qb7+ {[%clk 0:00:06.8]} 33... Kd8 {[%clk 0:00:12.6]} 34. Qb8+ {[%clk
0:00:06.6]} 34... Kd7 {[%clk 0:00:13.1]} 35. Qxe5 {[%clk 0:00:06.2]} 35... Qa2
{[%clk 0:00:09.4]} 36. Rd6+ {[%clk 0:00:04.4]} 36... Kc8 {[%clk 0:00:08.1]} 37.
Qe8+ {[%clk 0:00:04.3]} 37... Kb7 {[%clk 0:00:08.8]} 38. Qe7+ {[%clk 0:00:04]}
38... Kc8 {[%clk 0:00:09.7]} 39. Rd8# {[%clk 0:00:04.9]} 1-0

[Event "Early-Titled-Tuesday-Blitz-January-30-2024"]
[Site "Chess.com"]
[Date "2024.01.30"]
[Round "7"]
[White "only_strong_moves"]
[Black "GianmarcoVaR"]
[Result "0-1"]
[WhiteElo "2524"]
[BlackElo "2706"]
[TimeControl "180+1"]
[EndTime "9:19:28 PST"]
[Termination "GianmarcoVaR won on time"]

1. d4 {[%clk 0:03:00.9]} 1... Nf6 {[%clk 0:02:50.1]} 2. c4 {[%clk 0:02:58.7]}
2... e6 {[%clk 0:02:44.2]} 3. Nf3 {[%clk 0:02:57.6]} 3... d5 {[%clk 0:02:38.3]}
4. g3 {[%clk 0:02:56.5]} 4... Bb4+ {[%clk 0:02:26.3]} 5. Nbd2 {[%clk 0:02:54.9]}
5... dxc4 {[%clk 0:02:25.4]} 6. Bg2 {[%clk 0:02:54.1]} 6... b5 {[%clk
0:02:26.1]} 7. O-O {[%clk 0:02:50.2]} 7... Bb7 {[%clk 0:02:24.7]} 8. a4 {[%clk
0:02:49.9]} 8... a6 {[%clk 0:02:22.8]} 9. b3 {[%clk 0:02:48.8]} 9... c3 {[%clk
0:02:14.5]} 10. Nb1 {[%clk 0:02:47.8]} 10... c5 {[%clk 0:01:53.9]} 11. Bg5
{[%clk 0:02:41.8]} 11... cxd4 {[%clk 0:01:42.8]} 12. Qxd4 {[%clk 0:02:18.2]}
12... Qxd4 {[%clk 0:01:28.2]} 13. Nxd4 {[%clk 0:02:19.1]} 13... Bxg2 {[%clk
0:01:28.5]} 14. Kxg2 {[%clk 0:02:20]} 14... Bc5 {[%clk 0:01:25.9]} 15. Nc2
{[%clk 0:01:46.2]} 15... b4 {[%clk 0:01:25.8]} 16. a5 {[%clk 0:01:44.6]} 16...
Nc6 {[%clk 0:01:16.8]} 17. Be3 {[%clk 0:01:34.6]} 17... Ne4 {[%clk 0:01:05.9]}
18. Bc1 {[%clk 0:00:57]} 18... Ba7 {[%clk 0:00:49.7]} 19. Ra4 {[%clk 0:00:50.5]}
19... Nc5 {[%clk 0:00:48.4]} 20. Nxb4 {[%clk 0:00:46.9]} 20... Nd4 {[%clk
0:00:16.4]} 21. Nxc3 {[%clk 0:00:34.9]} 21... Nxa4 {[%clk 0:00:15.6]} 22. Nxa4
{[%clk 0:00:35.8]} 22... Nxb3 {[%clk 0:00:15.1]} 23. Nxa6 {[%clk 0:00:35.8]}
23... O-O {[%clk 0:00:13.9]} 24. Ba3 {[%clk 0:00:27.9]} 24... Rfc8 {[%clk
0:00:13.1]} 25. Rb1 {[%clk 0:00:27.6]} 25... Nxa5 {[%clk 0:00:13.2]} 26. Bc5
{[%clk 0:00:19.6]} 26... Nc4 {[%clk 0:00:11.9]} 27. Rb4 {[%clk 0:00:15.9]} 27...
Ne5 {[%clk 0:00:11.4]} 28. Rb7 {[%clk 0:00:13.3]} 28... Bxc5 {[%clk 0:00:09]}
29. N6xc5 {[%clk 0:00:14.2]} 29... Rab8 {[%clk 0:00:06.7]} 30. Ra7 {[%clk
0:00:14]} 30... Nc6 {[%clk 0:00:06.9]} 31. Rd7 {[%clk 0:00:12.7]} 31... Rd8
{[%clk 0:00:06.7]} 32. Rc7 {[%clk 0:00:13]} 32... Rbc8 {[%clk 0:00:07.1]} 33.
Rb7 {[%clk 0:00:13.6]} 33... Rd2 {[%clk 0:00:06]} 34. Nb6 {[%clk 0:00:13.2]}
34... Rcd8 {[%clk 0:00:05.5]} 35. e3 {[%clk 0:00:13.3]} 35... Ne5 {[%clk
0:00:05.2]} 36. Ne4 {[%clk 0:00:12.3]} 36... Rb2 {[%clk 0:00:04.8]} 37. Nc5
{[%clk 0:00:05.3]} 37... h5 {[%clk 0:00:04]} 38. Nba4 {[%clk 0:00:03.6]} 38...
Rxb7 {[%clk 0:00:03.8]} 39. Nxb7 {[%clk 0:00:04.5]} 39... Rd2 {[%clk 0:00:04.3]}
40. Nac5 {[%clk 0:00:04.6]} 40... Rb2 {[%clk 0:00:04.2]} 41. Nd6 {[%clk
0:00:04.2]} 41... Ng4 {[%clk 0:00:04.4]} 42. Nd3 {[%clk 0:00:02.2]} 42... Rd2
{[%clk 0:00:05]} 0-1

[Event "Early-Titled-Tuesday-Blitz-January-30-2024"]
[Site "Chess.com"]
[Date "2024.01.30"]
[Round "7"]
[White "the_chess_child"]
[Black "Aygehovit1992"]
[Result "1-0"]
[WhiteElo "2883"]
[BlackElo "2690"]
[TimeControl "180+1"]
[EndTime "9:19:31 PST"]
[Termination "the_chess_child won on time"]

1. e4 {[%clk 0:03:00.9]} 1... c5 {[%clk 0:02:59.7]} 2. Nf3 {[%clk 0:03:01.2]}
2... d6 {[%clk 0:02:59.7]} 3. d3 {[%clk 0:03:00.9]} 3... g6 {[%clk 0:02:58.3]}
4. g3 {[%clk 0:03:01.3]} 4... Bg7 {[%clk 0:02:58.7]} 5. Bg2 {[%clk 0:03:01.9]}
5... Nc6 {[%clk 0:02:59.3]} 6. O-O {[%clk 0:03:02.6]} 6... Rb8 {[%clk
0:02:59.9]} 7. a4 {[%clk 0:02:56.5]} 7... e5 {[%clk 0:02:58.4]} 8. Nc3 {[%clk
0:02:56]} 8... Nge7 {[%clk 0:02:58]} 9. Nd2 {[%clk 0:02:56.1]} 9... h5 {[%clk
0:02:57.2]} 10. Nc4 {[%clk 0:02:50.5]} 10... h4 {[%clk 0:02:57]} 11. Nb5 {[%clk
0:02:50.4]} 11... h3 {[%clk 0:02:44.1]} 12. Nbxd6+ {[%clk 0:02:45.2]} 12... Kf8
{[%clk 0:02:39.9]} 13. Bh1 {[%clk 0:02:44.8]} 13... Be6 {[%clk 0:02:40.3]} 14.
f4 {[%clk 0:02:43.5]} 14... exf4 {[%clk 0:02:40]} 15. Rxf4 {[%clk 0:02:38]}
15... Bd4+ {[%clk 0:02:35.9]} 16. Kf1 {[%clk 0:02:37.5]} 16... Ne5 {[%clk
0:02:16.3]} 17. c3 {[%clk 0:02:07.2]} 17... Nxc4 {[%clk 0:02:15.9]} 18. Nxc4
{[%clk 0:02:06.7]} 18... Bxc4 {[%clk 0:02:15]} 19. dxc4 {[%clk 0:01:54.2]} 19...
Be5 {[%clk 0:01:25.1]} 20. Qf3 {[%clk 0:01:52.1]} 20... Bxf4 {[%clk 0:01:25.2]}
21. Bxf4 {[%clk 0:01:52.1]} 21... Nc6 {[%clk 0:01:25.3]} 22. Rd1 {[%clk
0:01:46.6]} 22... Qe8 {[%clk 0:00:55.5]} 23. Bxb8 {[%clk 0:01:42.3]} 23... Qxb8
{[%clk 0:00:52.6]} 24. Qf6 {[%clk 0:01:41.4]} 24... Rh5 {[%clk 0:00:41]} 25. Bf3
{[%clk 0:01:33.9]} 25... Qe5 {[%clk 0:00:27.6]} 26. Qxe5 {[%clk 0:01:03.2]}
26... Rxe5 {[%clk 0:00:28.5]} 27. Rd7 {[%clk 0:01:02.6]} 27... Re7 {[%clk
0:00:27.3]} 28. Rd5 {[%clk 0:01:02]} 28... b6 {[%clk 0:00:24.5]} 29. Kf2 {[%clk
0:00:58.7]} 29... Ne5 {[%clk 0:00:22.8]} 30. Be2 {[%clk 0:00:56.6]} 30... a5
{[%clk 0:00:16.2]} 31. Ke3 {[%clk 0:00:53.7]} 31... Kg7 {[%clk 0:00:15.9]} 32.
b3 {[%clk 0:00:38.3]} 32... Re6 {[%clk 0:00:15.7]} 33. Bf1 {[%clk 0:00:34]}
33... Ng4+ {[%clk 0:00:15.3]} 34. Kf4 {[%clk 0:00:32.9]} 34... Nf6 {[%clk
0:00:06.4]} 35. e5 {[%clk 0:00:25.2]} 35... Nxd5+ {[%clk 0:00:04.7]} 36. cxd5
{[%clk 0:00:26.1]} 36... Re8 {[%clk 0:00:02.7]} 37. Bb5 {[%clk 0:00:24.2]} 37...
Rd8 {[%clk 0:00:02.5]} 38. d6 {[%clk 0:00:21.5]} 38... Kf8 {[%clk 0:00:02.8]}
39. Ke4 {[%clk 0:00:20.8]} 39... Kg7 {[%clk 0:00:01.4]} 40. Kd5 {[%clk
0:00:20.9]} 40... f6 {[%clk 0:00:01.1]} 41. e6 {[%clk 0:00:21.1]} 41... Rh8
{[%clk 0:00:01.1]} 42. e7 {[%clk 0:00:21.3]} 42... Kf7 {[%clk 0:00:01.3]} 43.
Kc6 {[%clk 0:00:18.9]} 43... Ke6 {[%clk 0:00:01.6]} 44. Bc4+ {[%clk 0:00:18.7]}
44... Ke5 {[%clk 0:00:01.5]} 45. d7 {[%clk 0:00:19.3]} 1-0

[Event "Early-Titled-Tuesday-Blitz-January-30-2024"]
[Site "Chess.com"]
[Date "2024.01.30"]
[Round "7"]
[White "esrosenberg"]
[Black "vishwa_vijeta"]
[Result "1-0"]
[WhiteElo "2408"]
[BlackElo "2539"]
[TimeControl "180+1"]
[EndTime "9:19:32 PST"]
[Termination "esrosenberg won on time"]

1. c4 {[%clk 0:03:00.9]} 1... c5 {[%clk 0:02:52.8]} 2. g3 {[%clk 0:03:00.6]}
2... Nc6 {[%clk 0:02:50.7]} 3. Bg2 {[%clk 0:03:01]} 3... g6 {[%clk 0:02:49.5]}
4. Nc3 {[%clk 0:03:01.2]} 4... Bg7 {[%clk 0:02:48.8]} 5. a3 {[%clk 0:03:01.8]}
5... e6 {[%clk 0:02:47.4]} 6. Rb1 {[%clk 0:02:55.5]} 6... Nge7 {[%clk
0:02:46.8]} 7. b4 {[%clk 0:02:54.6]} 7... cxb4 {[%clk 0:02:45.9]} 8. axb4 {[%clk
0:02:55.5]} 8... d5 {[%clk 0:02:45.5]} 9. cxd5 {[%clk 0:02:48.6]} 9... exd5
{[%clk 0:02:46.4]} 10. b5 {[%clk 0:02:48.4]} 10... Ne5 {[%clk 0:02:41]} 11. d4
{[%clk 0:02:45.9]} 11... Nc4 {[%clk 0:02:40.7]} 12. Nf3 {[%clk 0:02:44.3]} 12...
O-O {[%clk 0:02:39]} 13. O-O {[%clk 0:02:44]} 13... a6 {[%clk 0:02:35]} 14. Bg5
{[%clk 0:02:41.2]} 14... Be6 {[%clk 0:02:32.1]} 15. bxa6 {[%clk 0:02:35.2]}
15... bxa6 {[%clk 0:02:33]} 16. Rb7 {[%clk 0:02:35]} 16... f6 {[%clk 0:02:29.8]}
17. Bf4 {[%clk 0:02:32]} 17... g5 {[%clk 0:02:26.2]} 18. Bc1 {[%clk 0:02:17.6]}
18... Rb8 {[%clk 0:02:10]} 19. Rxb8 {[%clk 0:02:13.9]} 19... Qxb8 {[%clk
0:02:10.3]} 20. Na4 {[%clk 0:02:12.7]} 20... Bf5 {[%clk 0:02:03.5]} 21. Nc5
{[%clk 0:02:11.8]} 21... a5 {[%clk 0:02:03.4]} 22. Nd2 {[%clk 0:02:06.2]} 22...
Qb5 {[%clk 0:01:56.5]} 23. Nxc4 {[%clk 0:02:00.7]} 23... Qxc4 {[%clk 0:01:57.4]}
24. e4 {[%clk 0:01:45.4]} 24... dxe4 {[%clk 0:01:52]} 25. Nxe4 {[%clk
0:01:45.7]} 25... Rd8 {[%clk 0:01:50.9]} 26. Be3 {[%clk 0:01:45.1]} 26... Nd5
{[%clk 0:01:49.6]} 27. Qa1 {[%clk 0:01:24.7]} 27... Nxe3 {[%clk 0:01:43.6]} 28.
fxe3 {[%clk 0:01:24.5]} 28... Qe6 {[%clk 0:01:28.5]} 29. Qxa5 {[%clk 0:01:16.4]}
29... Bxe4 {[%clk 0:01:07.4]} 30. Qxd8+ {[%clk 0:01:15.5]} 30... Kf7 {[%clk
0:01:03.9]} 31. d5 {[%clk 0:01:03.4]} 31... Qe5 {[%clk 0:00:54.3]} 32. d6 {[%clk
0:00:55.4]} 32... Bxg2 {[%clk 0:00:48.3]} 33. Kxg2 {[%clk 0:00:56.3]} 33... Bf8
{[%clk 0:00:38.6]} 34. d7 {[%clk 0:00:34.1]} 34... Qe4+ {[%clk 0:00:27.7]} 35.
Rf3 {[%clk 0:00:30]} 35... Qc2+ {[%clk 0:00:21.8]} 36. Rf2 {[%clk 0:00:25.5]}
36... Qc6+ {[%clk 0:00:17.5]} 37. Kg1 {[%clk 0:00:25.3]} 37... Qc1+ {[%clk
0:00:16.6]} 38. Kg2 {[%clk 0:00:24.2]} 38... Qc6+ {[%clk 0:00:16.2]} 39. Rf3
{[%clk 0:00:20.3]} 39... Qc2+ {[%clk 0:00:15.7]} 40. Kh3 {[%clk 0:00:20.8]}
40... g4+ {[%clk 0:00:12.7]} 41. Kxg4 {[%clk 0:00:19.4]} 41... Qg6+ {[%clk
0:00:09.6]} 42. Kh3 {[%clk 0:00:18.8]} 1-0

[Event "Early-Titled-Tuesday-Blitz-January-30-2024"]
[Site "Chess.com"]
[Date "2024.01.30"]
[Round "7"]
[White "Byniolus"]
[Black "MITerryble"]
[Result "1-0"]
[WhiteElo "2839"]
[BlackElo "2976"]
[TimeControl "180+1"]
[EndTime "9:19:34 PST"]
[Termination "Byniolus won by resignation"]

1. d4 {[%clk 0:03:00.9]} 1... e6 {[%clk 0:02:59.7]} 2. Nf3 {[%clk 0:03:01.3]}
2... Nf6 {[%clk 0:03:00.2]} 3. Bf4 {[%clk 0:03:01.7]} 3... b6 {[%clk 0:03:00.6]}
4. e3 {[%clk 0:03:02.2]} 4... Bb7 {[%clk 0:03:01.2]} 5. Nbd2 {[%clk 0:03:02.7]}
5... Bd6 {[%clk 0:03:01.2]} 6. Bxd6 {[%clk 0:03:02.7]} 6... cxd6 {[%clk
0:03:02.1]} 7. Be2 {[%clk 0:03:01.6]} 7... O-O {[%clk 0:03:01.7]} 8. O-O {[%clk
0:03:02.2]} 8... d5 {[%clk 0:03:02.2]} 9. c4 {[%clk 0:03:01.4]} 9... dxc4 {[%clk
0:03:00.4]} 10. Nxc4 {[%clk 0:03:02.3]} 10... d6 {[%clk 0:02:46]} 11. Qa4 {[%clk
0:03:00.6]} 11... Qe7 {[%clk 0:02:38.6]} 12. Rfc1 {[%clk 0:02:57.2]} 12... Rd8
{[%clk 0:02:37.2]} 13. Qa3 {[%clk 0:02:45.1]} 13... Nc6 {[%clk 0:02:30.2]} 14.
Rc2 {[%clk 0:02:39.5]} 14... Nd5 {[%clk 0:02:12.6]} 15. Ncd2 {[%clk 0:02:15.4]}
15... Ncb4 {[%clk 0:01:50.6]} 16. Rcc1 {[%clk 0:02:13]} 16... Rdc8 {[%clk
0:01:46.2]} 17. Qb3 {[%clk 0:02:09.8]} 17... Nc6 {[%clk 0:01:38.8]} 18. a3
{[%clk 0:02:05.5]} 18... a6 {[%clk 0:01:33.4]} 19. e4 {[%clk 0:01:57.4]} 19...
Nf4 {[%clk 0:01:33.7]} 20. Bf1 {[%clk 0:01:57.8]} 20... b5 {[%clk 0:01:31.3]}
21. a4 {[%clk 0:01:53]} 21... bxa4 {[%clk 0:01:19.5]} 22. Qxa4 {[%clk
0:01:53.9]} 22... Qf6 {[%clk 0:01:11.6]} 23. Rc3 {[%clk 0:01:35.9]} 23... e5
{[%clk 0:01:03.8]} 24. Rac1 {[%clk 0:01:34.2]} 24... exd4 {[%clk 0:00:29.2]} 25.
Rxc6 {[%clk 0:01:33.7]} 25... Bxc6 {[%clk 0:00:30.1]} 26. Rxc6 {[%clk
0:01:34.4]} 26... Rxc6 {[%clk 0:00:31]} 27. Qxc6 {[%clk 0:01:35.1]} 27... Rb8
{[%clk 0:00:31.9]} 28. b3 {[%clk 0:01:24.2]} 28... g5 {[%clk 0:00:29.7]} 29. e5
{[%clk 0:01:12.8]} 29... Qf5 {[%clk 0:00:24]} 30. exd6 {[%clk 0:01:08]} 30... d3
{[%clk 0:00:19.9]} 31. Qc7 {[%clk 0:00:50.4]} 31... Rf8 {[%clk 0:00:09.5]} 32.
Qe7 {[%clk 0:00:36]} 32... h6 {[%clk 0:00:08.2]} 33. d7 {[%clk 0:00:29.6]} 33...
Qd5 {[%clk 0:00:07.1]} 34. h4 {[%clk 0:00:17.8]} 34... Ng6 {[%clk 0:00:04.1]}
35. Qe4 {[%clk 0:00:13.7]} 35... Qxd7 {[%clk 0:00:03.8]} 36. hxg5 {[%clk
0:00:13.2]} 36... hxg5 {[%clk 0:00:02.3]} 37. Bxd3 {[%clk 0:00:13]} 37... Re8
{[%clk 0:00:01.6]} 38. Qf5 {[%clk 0:00:11.9]} 38... Qd6 {[%clk 0:00:01.6]} 39.
Ne4 {[%clk 0:00:09.7]} 39... Qe7 {[%clk 0:00:01.5]} 40. Nf6+ {[%clk 0:00:09.8]}
40... Kg7 {[%clk 0:00:02]} 41. Nxe8+ {[%clk 0:00:08.8]} 41... Qxe8 {[%clk
0:00:02.9]} 42. Qxg5 {[%clk 0:00:06.2]} 42... Qb8 {[%clk 0:00:01.3]} 43. Bxg6
{[%clk 0:00:05.6]} 43... Qd6 {[%clk 0:00:01.4]} 44. Qe5+ {[%clk 0:00:05.8]}
44... Qxe5 {[%clk 0:00:01.7]} 45. Nxe5 {[%clk 0:00:06.7]} 45... fxg6 {[%clk
0:00:02.2]} 46. Nd7 {[%clk 0:00:07]} 1-0